Cogmind - Beta 16 @@@ ROGUE MODE // 2026.01.02 @ 19:29:11 Player: champi Result: Destroyed by 73-M2E(R) with Subdweller Beam Cannon Performance ------------- Evolutions (0) 0 Regions Visited (2) 400 Robots Destroyed (23) 115 Value Destroyed (579) 579 Prototype IDs (0) 0 Alien Tech Used (0) 0 Bonus (0) 0 TOTAL SCORE: 1094 Bonus ------- None Cogmind --------- Core Integrity 0/250 Matter 229/300 Energy 249/250 System Corruption 4% Temperature Cool (15) Movement Treading (240) Ox1 Location -10/Subcaves Parts ------- > --- POWER (1) -------- Ion Engine > --- PROPULSION (2) --- Light Treads > --- UTILITY (2) ------ Large Storage Unit Signal Interpreter > --- WEAPON (2) ------- Assault Rifle > --- INVENTORY (15) --- Ion Engine Large Storage Unit Structural Scanner Seismic Detector Transport Network Coupler Core Shielding Core Shielding Scrap Shield Assault Rifle Assault Rifle Peak State ------------ > --- POWER ------------ Ion Engine > --- PROPULSION ------- Light Treads Light Treads > --- UTILITY ---------- Medium Storage Unit Core Shielding > --- WEAPON ----------- Assault Rifle Light Assault Rifle > --- INVENTORY -------- Ion Engine Ion Engine Light Ion Engine Light Treads Wheel Compact Wheel Core Shielding EM Pulse Gun Beam Cannon Light Assault Rifle [Rating: 8] Favorites ----------- Power Ion Engine Engine Ion Engine Propulsion Light Treads Treads Light Treads Utility Signal Interpreter Storage Large Storage Unit Processor Signal Interpreter Protection Core Shielding Weapon Assault Rifle Ballistic Gun Assault Rifle Build | -11 -10 -10 ------- Run | Yrd Mat Sub Slots Evolved . | . . . Power . | . . . Propulsion . | . . . Utility . | . . . Weapon . | . . . Parts Attached 23 | 6 14 3 Power 5 | 1 4 . Engine 5 | 1 4 . Core . | . . . Reactor . | . . . Propulsion 4 | 2 2 . Treads 4 | 2 2 . Leg . | . . . Wheel . | . . . Hover . | . . . Flight . | . . . Utility 5 | 1 4 . Device . | . . . Storage 3 | 1 2 . Processor 1 | . 1 . Hackware . | . . . Protection 1 | . 1 . Artifact . | . . . Weapon 9 | 2 4 3 Energy Gun . | . . . Energy Cannon . | . . . Ballistic Gun 9 | 2 4 3 Ballistic Cannon . | . . . Launcher . | . . . Special Weapon . | . . . Impact Weapon . | . . . Slashing Weapon . | . . . Piercing Weapon . | . . . Special Melee Weapon . | . . . Unidentified Prototypes . | . . . Parts Lost 5 | . 1 4 Power 1 | . . 1 Propulsion 1 | . . 1 Utility . | . . . Weapon 3 | . 1 2 Highest Loss Streak 4 | . 1 4 To Critical Strikes . | . . . Average Backups 9 | 2 9 12 Power 2 | . 2 1 Propulsion 1 | . 1 . Utility 3 | . 3 6 Weapon 2 | . 2 4 Tool/Special . | . . . Unused Backups 12 | . 6 6 Power 1 | . 1 . Propulsion 2 | . 2 . Utility 7 | . 1 6 Weapon 2 | . 2 . Tool/Special . | . . . Average Slot Usage (%) 95 | . 96 79 Engine 13 | . 13 14 Treads 27 | . 27 26 Storage 14 | . 14 14 Processor 7 | . 6 14 Protection 4 | . 4 . Ballistic Gun 26 | . 27 9 Peak Build Rating 8 | 6 8 8 Average Rating 7 | 4 7 6 On Entrance 4 | . 6 8 Avg Prop Armor Cover (%) . | . . . Naked Turns . | . . . Heaviest Build 29 | 12 29 29 Greatest Support 40 | 40 40 40 Greatest Overweight (x) 1 | . 1 1 Average Overweight (x) . | . . . Largest Inventory Capacity 15 | 8 15 15 Average Capacity 11 | 7 11 15 Most Carried 15 | 4 12 15 Average Carried 9 | 2 9 13 Final Capacity 15 | 8 15 15 Final Carried 11 | 4 11 11 Class Distribution -------------------- 100% | Mutant Dominant Class ---------------- Mutant | -10/Materials Mutant | -10/Subcaves Resources | -11 -10 -10 ----------- Run | Yrd Mat Sub Matter Collected 818 | 133 685 . Remotely . | . . . Salvage Created 808 | . 808 . Parts 44 | . 44 . Haulers Intercepted 2 | . 2 . Recyclers Shooed . | . . . Parts Field Recycled . | . . . Retrieved Matter . | . . . Parts Self-Destructed . | . . . Prevented . | . . . Parts Restored . | . . . Kills | -11 -10 -10 ------- Run | Yrd Mat Sub Combat Hostiles Destroyed 20 | . 20 . Guns 20 | . 20 . Classes Destroyed 4 | . 4 . Hauler 2 | . 2 . Watcher 1 | . 1 . Swarmer 6 | . 6 . Grunt 14 | . 14 . Best Kill Streak 5 | . 5 . Combat Bots Only 5 | . 5 . Max Kills in Single Turn 2 | . 2 . Gunslinging 1 | . 1 . Exploded . | . . . Melee . | . . . Uniques/NPCs Destroyed . | . . . Combat | -11 -10 -10 -------- Run | Yrd Mat Sub Hostile Shots Fired 141 | . 108 33 Missed 44 | . 35 9 Hits 97 | . 73 24 Projectile 97 | . 73 24 Critical Strikes 2 | . 2 . Damage Taken 1408 | . 825 583 Core 269 | . 92 177 Absorbed by Shields . | . . . Redirected to Shielding 6 | . 6 . Regen/Repaired (Parts) 87 | . 87 . Core Remaining (%) 100 | 100 . . Volleys Fired 101 | . 92 9 Largest 2 | . 2 2 Hottest 40 | . 40 40 Shots Fired 200 | . 183 17 Gun 200 | . 183 17 Cannon . | . . . Launcher . | . . . Special . | . . . Kinetic 200 | . 183 17 Thermal . | . . . Explosive . | . . . Electromagnetic . | . . . Robot Hit Streak 12 | . 11 12 Robot Miss Streak 6 | . 6 2 Penetration Max . | . . . Secondary Targets 4 | . 4 . Max Gunslinging Chain 1 | . 1 . Shots Hit Robots 129 | . 115 14 Core Hits 49 | . 48 1 Critical Kills . | . . . Critical Parts Destroyed . | . . . Critical Strikes . | . . . Melee Attacks . | . . . Impact . | . . . Slashing . | . . . Piercing . | . . . Sneak Attacks . | . . . Combat Hostiles . | . . . Follow-up Attacks . | . . . Damage Inflicted 1230 | . 1156 74 Guns 1230 | . 1156 74 Cannons . | . . . Explosions . | . . . Melee . | . . . Ramming . | . . . Kinetic 1230 | . 1156 74 Thermal . | . . . Explosive . | . . . Electromagnetic . | . . . Impact . | . . . Slashing . | . . . Piercing . | . . . Highest Corruption 4 | . 4 4 Average Corruption 3 | . 3 4 Corruption Purged . | . . . Corruption Blocked . | . . . Effects 5 | . 4 1 Message Errors 2 | . 1 1 Matter Fused 1 | . 1 . Heat Flow Errors 1 | . 1 . Energy Discharges 1 | . 1 . Overload Shots . | . . . Overflow Damage . | . . . Projectiles . | . . . Explosions . | . . . Melee . | . . . Knockbacks . | . . . Impact . | . . . Kinetic . | . . . Secondary . | . . . Self-Inflicted Damage . | . . . Shots . | . . . Rammed . | . . . Targets Rammed . | . . . Kicked . | . . . Crushed . | . . . Highest Temperature 193 | . 193 . Average Temperature 21 | . 21 . Received Heat Transfer 576 | . 393 183 Siege Activations . | . . . Martial Activations . | . . . Shielding Activations . | . . . Robots Disrupted . | . . . Combat Hostiles . | . . . Robots Corrupted . | . . . Combat Hostiles . | . . . Parts Fried . | . . . Impact Corruptions . | . . . Robots Melted . | . . . Combat Hostiles . | . . . Parts Melted . | . . . Heat Transferred . | . . . Parts Sabotaged . | . . . Parts Stolen . | . . . Parts Stripped . | . . . Power Chain Reactions . | . . . Alert | -11 -10 -10 ------- Run | Yrd Mat Sub Maximum Alert Level . | . . . Low Security (%) 100 | 100 100 . Level 1 . | . . . Level 2 . | . . . Level 3 . | . . . Level 4 . | . . . Level 5 . | . . . High Security . | . . . Max Security . | . . . Peak Influence 154 | . 154 . Initial . | . . . Average 34 | . 35 . Influence Increases 545 | . 545 . Destroy 0b10 Robot/C 400 | . 400 . Destroy 0b10 Robot/NC 15 | . 15 . Destroy Leader 86 | . 86 . Successful Hack 13 | . 13 . Disable Machine 15 | . 15 . Destroy Structure 1 | . 1 . Lose Combat Pursuer 15 | . 15 . Influence Decreases 545 | . 545 . Time Decay 381 | . 381 . Lost Part 10 | . 10 . Purge Threat 154 | . 154 . Squads Dispatched 5 | . 5 . Investigation 3 | . 3 . Extermination . | . . . Reinforcement 2 | . 2 . Assault . | . . . Garrison . | . . . Intercept . | . . . Searches Triggered . | . . . Construction Impeded . | . . . Haulers Reinforced . | . . . Active Scanning Responses . | . . . Cargo Convoy Interrupts . | . . . Stealth | -11 -10 -10 --------- Run | Yrd Mat Sub Distress Signals 1 | . 1 . Communications Jammed . | . . . Distress Signals . | . . . Times Spotted 32 | . 30 2 Peak Tracking Total 7 | . 7 2 Tactical Retreats 1 | . 1 . Traps | -11 -10 -10 ------- Run | Yrd Mat Sub Traps Triggered 8 | . 8 . Indirectly . | . . . Trap Hack Attempts . | . . . Triggered . | . . . Disarmed . | . . . Reprogrammed . | . . . Reused . | . . . Traps Extracted . | . . . Installed . | . . . Triggered . | . . . Machines | -11 -10 -10 ---------- Run | Yrd Mat Sub Machines Disabled 2 | . 2 . Max in Single Turn 1 | . 1 . Machines Repaired . | . . . Machines Dismantled . | . . . Machines Sabotaged . | . . . Overloaded Fab Kills . | . . . Hacking | -11 -10 -10 --------- Run | Yrd Mat Sub Machines Accessed 9 | . 9 . Terminals 6 | . 6 . Fabricators . | . . . Repair Stations 1 | . 1 . Recycling Units 2 | . 2 . Scanalyzers . | . . . Garrison Access . | . . . Total Hacks 27 | . 27 . Successful 14 | . 14 . Failed 13 | . 13 . Catastrophic 5 | . 5 . Database Lockouts . | . . . Manual 7 | . 7 . Terminals 20 | . 20 . Fabricators . | . . . Repair Stations 3 | . 3 . Recycling Units 4 | . 4 . Scanalyzers . | . . . Garrison Access . | . . . Terminal Hacks 8 | . 8 . Record 1 | . 1 . Emergency Access Points 1 | . 1 . Alert Level 1 | . 1 . Unreport Threat 3 | . 3 . Locate Traps 2 | . 2 . Fabricator Hacks . | . . . Repair Station Hacks 2 | . 2 . Scan Component 1 | . 1 . Repair 1 | . 1 . Recycling Unit Hacks 4 | . 4 . Process 1 | . 1 . Report Inventory 2 | . 2 . Retrieve Matter 1 | . 1 . Scanalyzer . | . . . Garrison Access Hacks . | . . . Unauthorized Hacks . | . . . Terminals . | . . . Fabricators . | . . . Repair Stations . | . . . Recycling Units . | . . . Scanalyzers . | . . . Garrison Access . | . . . Data Cores Recovered . | . . . Used . | . . . Hacking Detections 7 | . 7 . Full Trace Events 4 | . 4 . Feedback Events . | . . . Feedback Blocked . | . . . Robot Schematics Acquired . | . . . Robots Built . | . . . Authchips . | . . . Time . | . . . Total Robot Build Rating . | . . . Part Schematics Acquired . | . . . Parts Built . | . . . Authchips . | . . . Time . | . . . Total Part Build Rating . | . . . Part Studies Acquired . | . . . Parts Repaired 1 | . 1 . Time 26 | . 26 . Parts Recycled . | . . . Recycled Matter 4 | . 4 . Retrieved Matter 4 | . 4 . Retrieved Components . | . . . Parts Scanalyzed . | . . . Part Schematics Acquired . | . . . Parts Damaged . | . . . Bothacking | -11 -10 -10 ------------ Run | Yrd Mat Sub Used RIF Installer . | . . . Robots Hacked . | . . . Non-combat . | . . . Combat . | . . . Robot Hacks Applied . | . . . Relay Couplers Released . | . . . Fabnet Peak Effective % . | . . . Robots Rewired . | . . . Allies Hacked . | . . . Hacks Repelled . | . . . Allies | -11 -10 -10 -------- Run | Yrd Mat Sub Total Allies . | . . . Largest Group . | . . . Highest-Rated Group . | . . . Highest-Rated Ally . | . . . Total Orders . | . . . Ally Attacks . | . . . Total Damage . | . . . Kills . | . . . Allies Corrupted . | . . . Allies Melted . | . . . Intel | -11 -10 -10 ------- Run | Yrd Mat Sub Active Infowar (turns) . | . . . Robot Analysis Total . | . . . Derelict Logs Recovered . | . . . Drone Launches . | . . . Drone Recoveries . | . . . Exploration | -11 -10 -10 ------------- Run | Yrd Mat Sub Turns Passed 2148 | 78 1979 91 Spaces Moved 1090 | 45 1010 35 Core 8 | 8 . . Treads 1082 | 37 1010 35 Legs . | . . . Wheels . | . . . Hover . | . . . Flight . | . . . Fastest Speed 50 | 50 160 160 Average Speed 160 | 140 160 169 Slowest Speed 240 | 160 240 240 Overloaded Moves . | . . . Propulsion Burnouts . | . . . Robots Hopped . | . . . Potential Cave-ins . | . . . Cave-ins Triggered . | . . . Exploration Rate (%) 35 | 4 97 4 Regions Visited 2 Branch Regions 1 Pre-discovered Areas . | . . . Known Exits Taken 1 | . 1 . Unknown Exits Taken 1 | 1 . . Scrap Searched . | . . . Spaces Dug . | . . . Terrain Destroyed . | . . . Melee . | . . . Projectile . | . . . AOE . | . . . Terrain Rammed . | . . . Walls Destroyed . | . . . Machines Disabled . | . . . Actions | -11 -10 -10 --------- Run | Yrd Mat Sub Total 1314 | 60 1202 52 Wait 40 | . 39 1 Move 1088 | 44 1009 35 Hop . | . . . Pick Up 36 | 10 25 1 Fast Attach 8 | . 8 . Attach 17 | 6 7 4 Detach 2 | . . 2 Swap 7 | . 7 . Drop 15 | . 15 . Fire 101 | . 92 9 Melee . | . . . Ram . | . . . Kick . | . . . Crush . | . . . Escape Stasis . | . . . Rewire . | . . . Trap . | . . . Miscellaneous . | . . . Route ------- -11/Scrapyard -10/Materials (discovered 6 exits: *Mat x3 / *Min x2 / *Sub) -10/Subcaves History --------- Turn | Location | Event 6 | -11/Scrapyard | Discovered new exit (range 14) 79 | -11/Scrapyard | Entered Materials 110 | -10/Materials | Discovered new exit (range 7) 308 | -10/Materials | Build established: Mutant 523 | -10/Materials | Discovered new exit (range 11) 747 | -10/Materials | Discovered new exit (range 15) 1044 | -10/Materials | Discovered new exit (range 4) 1108 | -10/Materials | Identified exit to Materials 1184 | -10/Materials | Discovered exit to Materials (range 8) 1373 | -10/Materials | Repaired Lgt. Treads 1646 | -10/Materials | Discovered new exit (range 6) 1652 | -10/Materials | Identified exit to Subcaves 1776 | -10/Materials | Identified exit to Mines 2058 | -10/Materials | Entered Subcaves 2059 | -10/Subcaves | Approached by a straggling Scientist 2132 | -10/Subcaves | Core integrity fell below 50% 2142 | -10/Subcaves | Core integrity fell below 20% 2149 | -10/Subcaves | Destroyed by 73-M2E(R) with Subdweller Beam Cannon Last Messages --------------- from was talking about a shortcut back to the UFD." HZ-OIH(h) drops a Scrap Shield: "Protect yourself with this!" Acquired Scrap Shield. HV Slug penetrates Twisted Machinery. 73-M2E(R) suffers critical hit (Destroy). 73-M2E(R) knocked back. ES-7M7(c): "I think it's somewhere northeast of here" HV Slug penetrates Twisted Machinery. HZ-OIH(h) destroyed. Subatomizers dissect the Myomer Leg. MOBPRP9VHW9W|>KJM7:WGCK9R3W#VLN#Y7EISGR Ion Engine destroyed. Subatomizers dissect the Myomer Leg. Lgt. Treads destroyed. Assault Rifle destroyed. Subatomizers dissect the Myomer Leg. Assault Rifle destroyed. Map ----- +----------------------------------------------------+ | ?????????????????????????????????????????????????? | | ?????????????????????????????????????????????????? | | ?????????????????????????????????????????????????? | | ?????????????????????????????????????????????????? | | ?????????????????????????????????????????????????? | | ?????????????????????????????????????????????????? | | ?????????????????????????????????????????????????? | | ?????????????????????????????????????????????????? | | ?????????????????????????????????????????????????? | | ????????????????? #??????????????????????????????? | | ?????????????????"" ?????????????????????????????? | | ????????????????? ????????????????????????????? | | ?????????????#???? ????????????????????????????? | | ?????????????#"""? ????????????????????????????? | | ?????????????# " "" %????????????????????????????? | | ?????????????# """" ##??????????????????????????? | | ??????????????# " "" ####???????????????????????? | | ???????????????# "" " ##??????????????????????? | | ?????????????### " " ##?????????????????????? | | ?????????????# ""%= #?????????????????????? | | ??????????????# ""RR #??????????????????????? | | ???????????????# ##?????????????????????? | | ???????????????## #?????????????????????? | | ????????????????# #?????????????????????? | | ????????????????## # ##?????????????????????? | | ?????????????????## # @ #?????????????????????? | | ??????????????????# #?????????????????????? | | ??????????????????# # # #?????????????????????? | | ??????????????????# #### #?????????????????????? | | ??????????????????##??# c #?###?????????????????? | | ??????????????????????## ## ###???????????????? | | ???????????????????#### ###?????????????? | | ???????????????????# #?????????????? | | ???????????????????# # # #????????????? | | ???????????????????# #### ####????????????? | | ???????????????????### ##??? #???????????????? | | ????????????????????## #??? ?????????????? | | ????????????????????# #??? ???????????? | | ????????????????????# ##??????????? | | ????????????????????## ## ##???????????? | | ?????????????????????## # #??#????????????? | | ??????????????????????### #???????????????? | | ????????????????????????? #???????????????? | | ?????????????????????????# ####???????????????? | | ?????????????????????????? #??????????????????? | | ?????????????????????????? #??????????????????? | | ??????????????????????????## ??????????????????? | | ????????????????????????????# ?????????????????? | | ?????????????????????????????? ????????????????? | | ?????????????????????????????????????????????????? | +----------------------------------------------------+ Best States ------------- Heat Dissipation 25 Energy Generation 10 Energy Capacity 250 Matter Stores 300 Matter Capacity 300 Sight Range 16 Terrain Scan Density 10 Core Shielding 20 Evasion (%) 40 Recoil Reduction 2 Item Schematics ----------------- None Robot Schematics ------------------ None Fabricated ------------ Nothing Repaired ---------- Lgt. Treads | 37% | -10/Materials Studied --------- None Alien Tech Used ----------------- None Achievements -------------- root@ Challenges ------------ None Game ------ Seed GreatPrecisionSlamshotty Manual? 0 Play Time 00:25:23 Cumulative 5.5 hours Start 2026.01.02 @ 19:01:20 End 2026.01.02 @ 19:29:11 Sessions 1 Manual Loads 0 Difficulty Rogue Special Mode None Game No. 6 Rogue 6 Adventurer 0 Explorer 0 Win Type - Total 0 Types 0/0/0/0/0/0/0/0/0/0 Lore% 3 Gallery% 6 Achievement% 8 Wizard Run 0 Options --------- Layout 1 ASCII 0 Keyboard 0 Movement Mouse Keybinds 0 Fullscreen 1 Font 24/Smallcaps Map View 50x35 Zoom Use 0% Tactical HUD 0 Map Filters NONE Filters NONE Steam 1 RUN: e9031574-4f7a-4cde-b93d-07515b1c9d16